bitfinex/quotes_ETHUSD_20241101
["timestamp","ask_amount","ask_price","bid_price","bid_amount"]
[1730425978612,0.9587,2514.1,2513.5,7.95691]
[1730425978785,4.93637,2514.1,2513.5,3.9784]
[1730425978983,3.97774,2514.0,2513.5,3.9784]
[1730425979186,3.97847,2513.6,2512.8,3.97961]
[1730425979486,3.97847,2513.6,2512.8,3.97962]
[1730425979487,1.0144,2513.3,2512.8,3.97962]
[1730425979692,1.0144,2513.3,2513.2,3.97899]
[1730425980086,3.97821,2513.7,2513.2,3.97899]
[1730425980087,1.0144,2513.7,2513.2,3.97899]
[1730425980504,1.0144,2513.7,2512.7,0.795966]
[1730425980722,1.0144,2513.7,2512.6,0.9302]
[1730425980723,3.97835,2513.6,2513.0,3.97918]
[1730425980930,3.97835,2513.6,2513.1,3.97912]
[1730425981099,1.0144,2513.7,2513.2,3.97897]
[1730425981307,4.9926,2513.7,2513.2,3.97897]
[1730425981505,3.97836,2513.6,2513.0,3.97918]
[1730425981798,3.97836,2513.6,2513.0,7.9584]
[1730425982225,0.55,2513.5,2512.8,3.97959]
[1730425982394,3.97916,2513.1,2512.4,3.98017]
[1730425982597,1.0144,2512.9,2512.1,3.98073]
[1730425982790,1.0144,2512.9,2512.5,3.97998]
[1730425983725,1.0144,2512.9,2512.6,3.97991]
[1730425984400,1.0144,2512.9,2512.5,3.97998]
[1730425984808,1.0144,2512.9,2512.6,3.97989]
[1730425985843,1.0144,2512.9,2512.3,7.96061]
[1730425986040,3.97971,2512.8,2512.1,3.98067]
[1730425986333,3.97971,2512.8,2511.7,3.9813]
[1730425986334,4.52979,2512.7,2511.8,0.07960963]
[1730425986539,4.52979,2512.7,2512.2,3.98057]
[1730425987388,4.52979,2512.7,2512.2,3.98055]
[1730425987643,4.52979,2512.7,2511.3,3.99195]
[1730425987644,0.9945,2512.0,2511.3,3.982]
[1730425987824,0.9945,2512.0,2511.1,0.9374]
[1730425987825,0.9945,2511.7,2511.1,3.98228]
[1730425987999,3.01,2512.1,2510.9,3.98255]
[1730425988000,0.4137,2511.3,2510.9,3.98255]
[1730425988204,4.97297,2511.2,2510.5,3.98317]
[1730425988516,0.9907,2511.2,2510.6,0.398317]
[1730425988714,0.9907,2511.2,2510.4,3.98333]
[1730425988904,0.9907,2510.8,2510.0,3.98397]
[1730425989103,3.98316,2510.6,2510.1,3.98387]
[1730425989314,0.55,2510.7,2510.0,3.98397]
[1730425989519,0.55,2510.7,2509.9,3.98406]
[1730425989703,3.98357,2510.4,2509.9,0.80480578]
[1730425989934,4.9588,2510.3,2509.6,7.96924]
[1730425990130,0.55,2510.2,2509.1,1.0088]
[1730425990334,0.55,2510.2,2509.9,3.98406]
[1730425990543,0.9937,2510.8,2509.9,3.98406]
[1730425990845,0.9937,2510.8,2510.3,3.98357]
[1730425991164,0.9937,2510.8,2509.7,3.9845]
[1730425991165,3.55,2510.5,2509.7,7.96885]
[1730425991363,3.98349,2510.4,2509.7,3.98441]
[1730425991519,0.55,2510.5,2509.7,3.98441]
[1730425991724,0.9937,2511.1,2510.4,3.98339]
[1730425991960,0.9937,2511.1,2510.1,3.6142127]
[1730425991961,0.9937,2511.1,2510.6,3.98307]
[1730425992142,0.4137,2511.3,2511.1,3.9823]
[1730425992646,0.4137,2511.3,2510.5,4.381449]
[1730425992647,3.98218,2511.2,2510.5,4.381449]
[1730425992852,3.98242,2511.1,2510.5,0.398339]
[1730425993162,1.0229,2510.8,2510.3,3.98353]
[1730425993656,0.9446,2511.2,2510.6,3.98309]
[1730425993857,0.9446,2511.2,2510.6,3.98296]
[1730425994064,0.9446,2511.2,2510.2,0.07965703]
[1730425994271,3.98236,2511.1,2510.4,3.98332]
[1730425994426,0.9446,2511.2,2510.4,3.98332]
[1730425994740,3.98253,2511.0,2510.2,4.2916557]
[1730425994923,0.55,2511.0,2510.5,3.98322]
[1730425995123,3.55,2511.1,2510.4,3.9834]
[1730425995331,4.39768,2511.1,2510.4,3.9834]
[1730425996048,0.55,2510.9,2510.4,3.9834]
[1730425997136,4.53264,2510.9,2510.2,3.98362]
[1730425997319,0.55,2510.9,2510.4,3.98342]
[1730425998171,3.98237,2511.1,2510.4,0.398342]
[1730425998331,3.0,2511.1,2510.6,3.98309]
[1730425998848,3.0,2511.1,2510.5,3.98313]
[1730425998849,6.98243,2511.1,2510.5,3.98313]
[1730425999353,3.98279,2510.9,2510.1,3.98378]
[1730425999555,3.98279,2510.9,2509.9,0.9526]
[1730425999556,0.55,2511.0,2510.5,3.98326]
[1730426000763,0.55,2511.0,2510.2,0.398378]
[1730426000962,0.55,2510.8,2509.9,3.98412]
[1730426001147,0.55,2510.8,2509.3,9.26646376]
[1730426001148,1.5132,2510.3,2509.8,3.98436]
[1730426001461,0.9632,2510.3,2509.9,3.98409]
[1730426001633,0.9632,2510.3,2510.1,3.9839]
[1730426002166,1.0234,2510.6,2510.1,3.9839]
[1730426002332,1.0234,2510.6,2510.2,3.98372]
[1730426002540,4.0234,2510.6,2510.1,3.98387]
[1730426002963,0.55,2510.3,2509.4,0.95]
[1730426003136,3.98422,2509.9,2509.2,3.98527]
[1730426003327,3.0,2509.9,2509.4,3.98499]
[1730426003623,3.0,2509.8,2509.2,3.9852]
[1730426003850,6.98448,2509.8,2509.2,7.97043]
[1730426004055,6.98448,2509.8,2509.2,3.9852]
[1730426004364,3.0,2509.8,2509.4,3.98498]
[1730426004536,5.174838,2509.9,2509.2,3.98521]
[1730426004869,0.9372,2510.0,2509.4,3.98492]
[1730426004870,0.55,2509.8,2509.4,3.98492]
[1730426005037,0.55,2509.9,2509.4,3.98492]
[1730426005626,0.55,2509.9,2509.4,4.5299012]
[1730426005865,0.9372,2510.0,2508.9,3.98575]
[1730426006192,0.9372,2510.8,2510.3,3.98349]
[1730426006396,0.9372,2510.8,2510.4,3.98333]
[1730426006560,0.9372,2510.8,2510.5,3.98324]
[1730426006747,0.9585,2511.2,2510.5,3.9832]
[1730426006947,0.9585,2511.2,2510.7,3.98285]
[1730426007187,0.9585,2511.2,2510.8,0.398285]
[1730426007487,0.9585,2511.6,2510.9,3.98261]
[1730426007690,0.9585,2511.6,2510.9,4.06225744]
[1730426007864,0.9585,2511.6,2511.1,3.98228]
[1730426008465,0.9585,2511.6,2510.9,3.98252]
[1730426008681,0.9585,2511.6,2511.1,3.98218]
[1730426010182,4.9401,2511.6,2510.9,8.9008995]
[1730426010473,0.9585,2511.6,2511.0,3.98247]
[1730426010672,0.55,2511.5,2510.7,0.9937]
[1730426010875,0.55,2511.5,2510.8,3.98278]
[1730426011099,0.55,2511.5,2511.0,3.98235]
[1730426011251,4.53177,2511.5,2510.8,3.98269]
[1730426011445,3.98201,2511.3,2510.8,3.98269]
[1730426011755,3.98185,2511.4,2510.8,3.98269]
[1730426012371,3.98202,2511.3,2510.8,3.98278]
[1730426012560,3.98202,2511.3,2510.6,3.98308]
[1730426012787,3.98202,2511.3,2509.8,3.98433]
[1730426012788,1.0248,2511.0,2510.2,3.98374]
[1730426012950,3.98272,2510.9,2510.3,3.98355]
[1730426013155,3.98272,2510.9,2510.2,7.96738]
[1730426013349,7.96548,2510.9,2510.2,3.98364]
[1730426013554,0.899028,2510.8,2510.4,3.98341]
[1730426013779,3.98275,2510.9,2510.3,3.98353]
[1730426014101,1.0248,2510.4,2509.7,5.00341]
[1730426014383,3.98384,2510.2,2509.5,3.98473]
[1730426014588,3.98368,2510.3,2509.5,4.485123]
[1730426014792,3.98368,2510.3,2509.3,5.00398]
[1730426014793,3.98417,2510.0,2509.3,5.00398]
[1730426015087,0.55,2510.1,2509.5,3.9848]
[1730426015391,3.98412,2510.0,2509.3,3.98504]
[1730426015884,7.96833,2510.0,2509.3,7.97012]
[1730426016191,3.98412,2510.0,2509.4,3.98497]
[1730426016484,0.55,2510.1,2509.5,3.98484]
[1730426016674,4.53399,2510.1,2509.5,3.98476]
[1730426017250,0.55,2510.1,2509.5,3.98476]
[1730426017493,3.9838,2510.2,2509.6,3.98468]
[1730426017680,1.0248,2510.4,2509.5,0.398476]
[1730426017997,1.0248,2510.4,2509.8,3.98423]
[1730426018356,1.0248,2510.4,2509.9,3.98419]
[1730426018575,1.0248,2510.4,2509.9,3.98411]
[1730426018782,1.0248,2510.4,2509.9,7.9682]
[1730426018986,1.0248,2510.4,2509.9,3.98409]
[1730426019798,1.0248,2510.4,2510.2,3.98374]
[1730426019955,1.0248,2510.4,2509.9,0.70089463]
[1730426019956,5.00831,2510.4,2509.9,0.70089463]
[1730426020391,0.55,2510.3,2509.5,3.98481]
[1730426020595,7.96767,2510.2,2509.6,3.98467]
[1730426020897,3.55,2510.3,2509.7,3.98453]
[1730426021066,7.53361,2510.3,2509.7,3.98453]
[1730426021274,3.55,2510.3,2509.7,3.98453]
[1730426021472,3.55,2510.3,2509.7,3.98443]
[1730426021792,0.55,2510.3,2509.7,3.98445]
[1730426021961,4.5336,2510.3,2509.5,3.98476]
[1730426022160,4.5336,2510.3,2509.7,3.98452]
[1730426022384,8.51729,2510.3,2509.7,3.98452]
[1730426022687,4.5336,2510.3,2509.7,3.98452]
[1730426023697,3.98401,2510.1,2509.4,0.9531]
[1730426024014,3.98401,2510.1,2509.2,3.98521]
[1730426024015,0.55,2509.7,2509.2,3.98521]
[1730426024302,3.98375,2510.2,2509.7,3.98453]
[1730426024464,3.0,2510.3,2509.7,3.98443]
[1730426024659,3.0,2510.3,2509.8,3.98428]
[1730426024861,0.9594,2510.6,2509.3,4.81370053]
[1730426024862,3.0,2510.5,2510.0,3.98401]
[1730426025263,3.0,2510.5,2509.7,3.98444]
[1730426025264,3.98359,2510.3,2509.7,3.98444]
[1730426025461,3.0,2510.4,2509.5,0.82857053]
[1730426025698,3.9594,2510.6,2510.0,3.98395]
[1730426025896,3.9594,2510.6,2510.1,3.98379]
[1730426026101,7.94254,2510.6,2510.0,7.96791]
[1730426026303,3.9594,2510.6,2510.1,3.98381]
[1730426026475,0.9594,2510.6,2510.3,3.98355]
[1730426026666,0.9594,2510.6,2510.2,3.98374]
[1730426028097,0.9594,2510.6,2510.4,3.98334]
[1730426028276,0.9594,2510.6,2510.5,3.98327]
[1730426028470,0.9594,2510.6,2510.4,3.98332]
[1730426029001,0.9709,2511.0,2509.8,1.0276]
[1730426029196,3.98282,2510.8,2510.2,3.98365]
[1730426029815,0.9709,2511.0,2510.6,3.98298]
[1730426030566,0.9709,2511.0,2510.7,3.98295]
[1730426030768,0.9318,2511.5,2510.9,3.98263]
[1730426031085,3.98185,2511.4,2510.8,7.96548]
[1730426031286,3.98185,2511.4,2510.8,3.9827]
[1730426031477,4.871378,2511.4,2510.8,3.9827]
[1730426031685,8.853368,2511.4,2510.8,3.9827]
[1730426031870,3.0,2511.3,2510.8,3.9827]
[1730426032197,0.889528,2511.4,2510.4,0.9567]
[1730426032497,0.55,2511.4,2511.0,3.98243]
[1730426032899,4.53185,2511.4,2510.8,3.98266]
[1730426033098,3.0,2511.3,2510.8,3.98266]
[1730426033306,6.98203,2511.3,2510.8,3.98266]
[1730426033618,3.0,2511.3,2510.8,7.96536]
[1730426033827,0.55,2511.4,2510.8,3.98266]
[1730426033966,3.98204,2511.3,2510.8,3.98266]
[1730426034587,0.55,2511.4,2510.8,3.98266]
[1730426034815,4.53194,2511.4,2510.8,3.98266]
[1730426034962,8.51392,2511.4,2510.8,3.98266]
[1730426035166,0.9695,2511.3,2510.6,4.81540142]
[1730426035492,0.9695,2511.3,2510.8,3.98269]
[1730426035493,3.9695,2511.3,2510.8,3.98269]
[1730426035799,3.9822,2511.2,2510.6,4.81529142]
[1730426036102,3.9822,2511.2,2510.6,3.983]
[1730426036611,3.98232,2511.1,2510.4,4.81564142]
[1730426036780,0.9695,2511.3,2510.4,4.81557142]
[1730426037109,3.98264,2510.9,2510.3,0.83229142]
[1730426037275,4.779162,2510.9,2510.3,3.98355]
[1730426037708,3.98287,2510.8,2510.2,3.9836]
[1730426038005,3.98319,2510.6,2510.0,4.81625142]
[1730426038304,0.9695,2510.7,2509.9,0.83229142]
[1730426038470,0.9695,2510.7,2510.2,7.96725]
[1730426038670,0.9695,2510.7,2510.3,3.98356]
[1730426039093,0.9695,2510.7,2510.4,3.98342]
[1730426039289,0.9695,2510.7,2510.4,3.98334]
[1730426039503,0.55,2510.6,2510.0,0.30938285]
[1730426039674,0.55,2510.6,2509.8,1.0131]
[1730426039878,0.55,2510.6,2510.0,3.98393]
[1730426040192,0.55,2510.6,2510.2,3.98371]
[1730426040506,3.98269,2510.9,2510.4,3.98341]
[1730426040710,3.98274,2510.9,2510.3,3.9835]
[1730426040870,3.0,2511.2,2510.1,3.98376]
[1730426040871,3.98283,2510.8,2510.1,3.98376]
[1730426041071,0.9593,2510.5,2509.9,3.9841]
[1730426041395,4.94259,2510.5,2509.9,3.9841]
[1730426041706,4.94259,2510.5,2509.9,7.96823]
[1730426041909,4.94259,2510.5,2509.9,3.9841]
[1730426042114,0.55,2510.2,2509.7,3.98445]
[1730426042402,0.55,2510.2,2509.5,3.98485]
[1730426042611,4.9082,2510.1,2509.5,3.98476]
[1730426042775,4.9082,2510.1,2509.6,3.98461]
[1730426043111,0.9743,2510.1,2509.7,3.98445]
[1730426043407,0.9743,2510.1,2509.0,1.84349142]
[1730426043575,4.9582,2510.1,2509.5,3.98474]
[1730426043793,0.9743,2510.1,2509.7,3.98453]
[1730426044008,4.0061,2510.4,2509.8,3.98436]
[1730426044326,7.98955,2510.4,2509.8,3.98436]
[1730426044535,7.98955,2510.4,2509.8,7.96864]
[1730426045207,3.98401,2510.1,2509.6,4.99587]
[1730426045405,3.98377,2510.2,2509.6,3.98467]
[1730426046124,3.98377,2510.2,2509.6,3.9846]
[1730426046329,3.98392,2510.1,2509.6,3.9846]
[1730426046567,3.0,2509.9,2509.1,3.98538]
[1730426046701,0.8766545,2510.1,2509.1,3.98538]
[1730426046702,3.98455,2509.7,2509.1,3.98538]
[1730426046994,0.9955,2509.6,2509.1,3.98538]
[1730426047608,0.9955,2509.6,2509.3,3.98514]
[1730426049123,0.9955,2509.6,2509.1,3.98538]
[1730426049329,0.9955,2509.6,2509.3,3.98514]
[1730426049533,1.0177,2509.9,2508.9,1.0151]
[1730426049845,1.0177,2510.2,2510.0,3.98396]
[1730426050217,1.0177,2510.2,2509.8,3.98433]
[1730426050218,1.0177,2510.2,2509.9,3.98422]
[1730426050418,1.0177,2510.2,2509.8,3.98428]
[1730426050728,3.98329,2510.5,2509.8,3.98434]
[1730426050894,3.98369,2510.3,2509.8,3.98434]
[1730426051096,3.98394,2510.1,2509.6,3.98459]
[1730426051299,3.98416,2510.0,2509.4,3.98492]
[1730426051611,3.98438,2509.8,2509.2,3.98529]
[1730426051828,0.796854,2509.8,2509.3,3.98516]
[1730426052132,3.98456,2509.7,2509.2,3.98521]
[1730426052292,4.53452,2509.8,2509.2,3.98521]
[1730426052497,0.55,2509.8,2509.0,0.07970395]
[1730426052722,7.53432,2509.9,2509.3,7.97023]
[1730426053110,3.98447,2509.8,2509.3,3.98506]
[1730426053428,0.55,2510.0,2509.6,3.9846]
[1730426053737,1.0097,2510.1,2509.6,3.9846]
[1730426053938,1.0097,2510.1,2509.3,0.797047]
[1730426054105,1.0097,2510.1,2509.5,1.06569394]
[1730426054310,3.98415,2510.0,2509.4,3.98487]
[1730426054708,3.98415,2510.0,2509.4,7.96978]
[1730426054935,1.0097,2510.1,2509.6,3.98469]
[1730426055107,1.0097,2510.1,2509.4,3.98487]
[1730426055302,1.0097,2510.1,2509.4,0.895613]
[1730426055501,3.98355,2510.4,2509.7,3.98444]
[1730426055705,3.98368,2510.3,2509.7,7.96888]
[1730426055915,3.98355,2510.4,2509.7,3.98443]
[1730426056116,3.98319,2510.6,2509.4,1.0045]
[1730426056117,3.98319,2510.6,2509.8,0.07968158]
[1730426056324,3.98319,2510.6,2510.0,7.96786]
[1730426056641,1.0025,2510.7,2510.3,3.9835]
[1730426057235,1.0025,2510.7,2510.1,3.98381]
[1730426057410,1.0025,2510.7,2509.7,3.98446]
[1730426057411,3.98359,2510.3,2509.7,3.98446]
[1730426057610,3.98359,2510.3,2509.7,3.98445]
[1730426057806,1.0025,2510.7,2510.0,3.98403]
[1730426058046,7.98546,2510.7,2510.1,3.98375]
[1730426058245,3.98327,2510.5,2509.9,3.9842]
[1730426058554,0.9485,2510.2,2509.7,3.98443]
[1730426059246,4.93235,2510.2,2509.6,0.07968441]
[1730426059550,3.98409,2510.0,2509.5,3.98475]
[1730426059716,3.98392,2510.1,2509.3,3.9851]
[1730426059912,3.98426,2509.9,2509.3,3.9851]
[1730426060156,3.98426,2509.9,2509.2,4.92304]
[1730426060365,3.9847,2509.6,2509.2,0.9378]
[1730426060658,0.9474,2509.6,2509.1,7.97082]
[1730426060826,0.9474,2509.6,2509.1,3.9854]
[1730426061028,4.93213,2509.6,2508.9,3.98567]
[1730426061223,4.93213,2509.6,2508.9,4.88174199]
[1730426061426,4.93213,2509.6,2509.0,3.98561]
[1730426061746,0.9474,2509.6,2509.2,3.9853]
[1730426061950,4.93212,2509.6,2509.0,3.98551]
[1730426062951,3.98447,2509.8,2509.2,3.98523]
[1730426063155,3.98447,2509.8,2509.3,1.05105139]
[1730426063453,3.98447,2509.8,2509.1,7.19040847]
[1730426063615,3.98457,2509.7,2509.1,3.98534]
[1730426063816,3.98457,2509.7,2509.1,7.97073]
[1730426064618,3.98457,2509.7,2509.2,3.9853]
[1730426065735,3.98447,2509.8,2509.1,3.98534]
[1730426065921,3.55,2509.9,2509.2,0.47823112]
[1730426066123,3.98463,2509.7,2509.2,0.398534]
[1730426066333,3.98463,2509.7,2509.1,3.98537]
[1730426066334,0.9456,2509.6,2508.9,4.88173199]
[1730426066554,3.98486,2509.5,2508.9,8.86745199]
[1730426066761,3.98486,2509.5,2509.0,3.98565]
[1730426067059,0.55,2509.5,2508.5,0.83229142]
[1730426067221,0.9456,2509.6,2508.2,4.86954131]
[1730426067222,3.98605,2508.8,2508.2,7.19175847]
[1730426067419,4.97201,2509.0,2508.4,3.98658]
[1730426067618,4.97201,2509.0,2508.4,3.9865]
[1730426067918,0.9863,2509.0,2508.4,3.9865]
[1730426068123,4.97204,2509.0,2508.5,0.4066225]
[1730426068324,4.972,2509.0,2508.5,0.4066225]
[1730426068563,0.9863,2509.0,2508.2,3.98682]
[1730426068733,3.98628,2508.7,2508.0,7.9743]
[1730426068933,3.98648,2508.5,2508.0,7.9743]
[1730426069324,3.98648,2508.5,2508.0,3.98714]
[1730426069526,0.9863,2508.4,2508.1,3.98707]
[1730426069753,0.9863,2508.4,2507.8,5.01069]
[1730426070021,4.97252,2508.7,2508.2,3.98691]
[1730426070246,4.97252,2508.7,2508.4,3.98654]
[1730426070247,0.9863,2508.7,2508.4,3.98654]
[1730426070764,0.9863,2508.7,2508.2,3.98682]
[1730426070962,0.9863,2508.7,2508.3,3.98676]
[1730426071135,0.9863,2508.7,2508.2,3.98682]
[1730426071665,0.9276,2509.0,2508.5,3.98633]
[1730426071849,4.91336,2509.0,2508.5,3.98633]
[1730426072053,0.9276,2509.0,2508.5,3.98633]
[1730426072662,4.91336,2509.0,2508.4,3.98655]
[1730426073429,0.9276,2509.0,2508.5,7.97282]
[1730426073634,4.91328,2509.0,2508.3,7.9733]
[1730426073836,4.91328,2509.0,2508.4,3.98659]
[1730426074055,0.9276,2509.0,2508.5,7.97264]
[1730426074437,0.9276,2509.0,2508.5,3.9863]
[1730426074845,0.9276,2509.0,2508.3,4.8637996]
[1730426074846,0.9276,2509.0,2508.7,3.98601]
[1730426075036,0.9276,2509.0,2508.7,7.97204]
[1730426075238,0.9454,2509.4,2509.1,3.98547]
[1730426075472,0.9454,2509.4,2509.1,7.97086]
[1730426075672,0.9454,2509.4,2509.1,3.98539]
[1730426075862,1.0117,2509.7,2509.3,3.98517]
[1730426076179,4.99632,2509.7,2509.1,3.98542]
[1730426076337,3.98479,2509.6,2509.0,3.98562]
[1730426076679,5.495892,2509.7,2509.2,3.9853]
[1730426076839,4.99626,2509.7,2509.1,7.97072]
[1730426077037,1.0117,2509.7,2508.9,3.98581]
[1730426077232,1.0117,2509.7,2509.5,3.98482]
[1730426077494,1.0117,2509.7,2509.3,3.98508]
[1730426077771,1.0117,2509.7,2509.4,3.9849]
[1730426078436,0.9457,2510.1,2509.5,3.98483]
[1730426078673,3.9457,2510.1,2509.6,3.98467]
[1730426078972,0.9457,2510.1,2509.7,3.98445]
[1730426079484,0.0689976,2510.6,2509.7,3.20495847]
[1730426079485,0.992,2510.5,2509.7,3.20495847]
[1730426079640,5.80065847,2511.3,2510.3,3.98354]
[1730426079641,0.992,2510.8,2510.3,3.98354]
[1730426080185,4.6060671,2510.9,2510.6,3.98302]
[1730426080186,0.6232971,2510.9,2510.6,3.98302]
[1730426080335,4.90875,2511.1,2510.4,3.98332]
[1730426080535,5.797771,2511.1,2510.4,3.98332]
[1730426080734,5.797771,2511.1,2510.5,3.98322]
[1730426081175,5.797771,2511.1,2510.4,3.98332]
[1730426081176,1.815401,2511.1,2510.6,3.98309]
[1730426081410,4.05088918,2511.4,2510.8,3.98279]
[1730426081411,3.98186,2511.4,2510.8,3.98279]
[1730426081563,3.98186,2511.4,2510.8,7.96538]
[1730426081769,1.0251,2511.5,2511.0,3.98234]
[1730426082001,1.0251,2511.5,2511.0,7.96471]
[1730426082185,5.00684,2511.5,2511.0,3.98234]
[1730426082567,1.0251,2511.5,2511.0,3.98234]
[1730426084412,5.00679,2511.5,2511.0,3.98234]
[1730426084593,1.0251,2511.5,2511.0,3.98234]
[1730426085675,1.0251,2511.5,2510.6,3.20495847]
[1730426085881,5.00688,2511.5,2510.7,4.40476585]
[1730426086103,5.00688,2511.5,2510.9,3.98259]
[1730426086399,5.00688,2511.5,2510.9,7.96512]
[1730426087399,5.00688,2511.5,2511.0,3.98243]
[1730426087602,3.0,2511.8,2511.0,0.796496]
[1730426087603,0.9899,2511.8,2511.0,0.796496]
[1730426087810,0.9899,2511.8,2511.4,3.98182]
[1730426088010,0.9899,2511.8,2511.2,3.98206]
[1730426088314,0.9899,2511.8,2511.3,3.98188]
[1730426088481,0.9899,2511.8,2511.4,3.98173]
[1730426088674,0.9899,2511.8,2511.4,4.77811]
[1730426089513,0.55,2512.0,2511.4,4.77811]
[1730426089716,0.55,2512.0,2511.5,3.98166]
[1730426091407,4.53093,2512.0,2511.4,4.77811]
[1730426091573,0.55,2512.0,2511.4,4.77808]
[1730426091774,0.55,2512.0,2511.4,3.9817]
[1730426092275,4.53094,2512.0,2511.4,3.9817]
[1730426092908,4.53094,2512.0,2511.2,3.98209]
[1730426093198,4.53094,2512.0,2511.3,3.98191]
[1730426093395,3.98105,2511.9,2511.4,0.7964]
[1730426094473,5.00363,2511.6,2511.0,3.98242]
[1730426094673,5.00363,2511.6,2511.0,3.98238]
[1730426095109,5.00363,2511.6,2511.0,7.96476]
[1730426096517,8.98525,2511.6,2511.0,3.98238]
[1730426096703,8.98525,2511.6,2510.9,0.0796406]
[1730426096704,5.00363,2511.6,2510.9,0.0796406]
[1730426097015,3.98225,2511.2,2510.6,3.98302]
[1730426097310,3.98225,2511.2,2510.6,3.9831]
[1730426097888,3.98225,2511.2,2510.7,3.98293]
[1730426098291,0.55,2511.3,2510.7,3.98293]
[1730426098494,0.55,2511.3,2510.9,3.98256]
[1730426098683,0.55,2511.3,2510.7,0.398293]
[1730426098912,4.53206,2511.3,2510.8,3.98263]
[1730426099908,1.0221,2511.6,2510.9,0.07965254]
[1730426100114,5.00372,2511.6,2510.9,3.98263]
[1730426100501,5.00372,2511.6,2510.6,3.20495847]
[1730426100710,3.98209,2511.3,2510.7,3.98282]
[1730426100888,1.0221,2511.6,2510.8,0.398282]
[1730426101222,3.98209,2511.3,2510.7,3.98282]
[1730426101375,3.98208,2511.3,2510.7,3.98282]
[1730426101879,7.96417,2511.3,2510.7,3.98282]
[1730426102220,3.98208,2511.3,2510.7,7.96568]
[1730426102380,3.98208,2511.3,2510.7,3.98282]
[1730426102804,1.0242,2511.2,2510.7,3.98282]
[1730426103317,5.00647,2511.2,2510.7,3.98282]
[1730426103518,1.0242,2511.2,2510.8,3.98278]
[1730426103718,1.0242,2511.2,2510.7,3.98282]
[1730426104128,0.9697,2511.5,2510.4,0.9558]
[1730426104419,3.9697,2511.5,2511.0,3.98234]
[1730426104611,3.9697,2511.5,2511.1,3.9823]
[1730426104929,4.9514,2511.5,2511.0,3.98234]
[1730426105726,3.98205,2511.3,2510.7,3.98284]
[1730426105896,0.55,2511.1,2510.4,4.93914]
[1730426106097,0.55,2511.1,2510.2,3.98361]
[1730426106098,3.98289,2510.8,2510.2,3.98361]
[1730426106321,3.98252,2511.0,2510.1,0.9806]
[1730426106322,3.98263,2510.9,2510.1,0.9806]
[1730426106502,3.98319,2510.6,2510.1,3.98387]
[1730426106703,4.53286,2510.8,2510.1,3.98387]
[1730426106704,4.53286,2510.8,2510.2,3.98374]
[1730426107123,8.51575,2510.8,2510.2,3.98374]
[1730426107421,3.55,2510.9,2510.4,3.98334]
[1730426107598,3.98289,2510.8,2510.2,3.98374]
[1730426107799,3.98289,2510.8,2510.2,7.9674]
[1730426108095,3.98289,2510.8,2510.2,3.98366]
[1730426108284,1.246427,2510.8,2510.6,3.98307]
[1730426108483,3.55,2510.9,2510.2,3.98364]
[1730426108484,7.53272,2510.9,2510.2,3.98364]
[1730426108722,4.53272,2510.9,2510.2,3.9836]
[1730426108922,4.53272,2510.9,2510.3,3.98347]
[1730426109130,3.98281,2510.8,2510.2,3.9836]
[1730426109936,0.55,2510.6,2509.8,8.9492]
[1730426110137,0.55,2510.6,2509.4,3.20495847]
[1730426110138,0.9488,2510.0,2509.4,3.98493]
[1730426110293,0.9488,2510.0,2509.7,3.98441]
[1730426110487,0.9488,2510.0,2509.5,4.481293]
[1730426110686,3.98422,2509.9,2509.5,0.496553]
[1730426111119,8.91714,2510.0,2509.5,0.496553]
[1730426111422,0.9488,2510.0,2509.5,3.98475]
[1730426111790,0.9488,2510.0,2509.4,0.07969188]
[1730426111991,3.98422,2509.9,2509.4,0.07969188]
[1730426112190,3.98422,2509.9,2509.3,0.9806]
[1730426112525,3.9844,2509.8,2509.2,3.9852]
[1730426112700,3.9844,2509.8,2509.2,4.877996]
[1730426113044,3.98422,2509.9,2509.0,4.94276]
[1730426113045,3.98477,2509.6,2509.0,4.94276]
[1730426113333,0.9823,2509.5,2509.0,3.98554]
[1730426113631,0.9823,2509.5,2509.3,3.98516]
[1730426113932,0.9823,2509.8,2509.3,3.98516]
[1730426114450,4.96668,2509.8,2509.3,3.98516]
[1730426114730,4.9619,2509.8,2509.3,3.98516]
[1730426114933,0.97752,2509.8,2509.6,3.98457]
[1730426115102,0.97752,2509.8,2509.4,3.98488]
[1730426115692,0.97752,2509.8,2509.3,0.9509]
[1730426115892,3.98456,2509.7,2509.2,3.98524]
[1730426116092,3.98456,2509.7,2509.0,3.98552]
[1730426116414,3.98456,2509.7,2509.1,3.98547]
[1730426116922,3.9847,2509.6,2509.0,4.79965785]
[1730426117094,0.55,2509.7,2509.0,4.79965785]
[1730426117520,3.98479,2509.6,2509.0,4.79965785]
[1730426117829,7.96964,2509.6,2509.0,4.79965785]
[1730426117991,3.98479,2509.6,2509.1,3.98547]
[1730426118396,3.98479,2509.6,2509.0,4.79965785]
[1730426118597,3.98486,2509.5,2509.0,3.98552]
[1730426118844,3.98516,2509.4,2508.7,3.40193964]
[1730426119054,0.9823,2509.3,2508.9,3.98578]
[1730426119344,0.9823,2509.3,2508.7,3.98602]
[1730426119549,0.55,2509.2,2508.3,4.93757]
[1730426119704,0.55,2509.2,2508.1,2.60473564]
[1730426119705,3.986,2508.8,2508.2,3.98691]
[1730426119903,0.9823,2508.7,2508.2,3.98691]
[1730426120101,0.9823,2508.7,2508.0,0.9509]